bitfinex-derivatives/quotes_ETHF0:USTF0_20241231
["timestamp","ask_amount","ask_price","bid_price","bid_amount"]
[1735654425669,1.5378,3437.3,3436.7,5.01256]
[1735654425976,3.2078,3437.6,3436.7,5.01256]
[1735654426279,1.4914,3437.4,3436.8,40.8]
[1735654427267,1.4914,3437.4,3436.8,41.09136]
[1735654428277,1.4914,3437.4,3436.8,42.06939013]
[1735654428478,1.4914,3437.4,3437.1,3.2078]
[1735654428677,1.4516,3437.8,3437.1,3.2078]
[1735654428875,1.4936,3437.7,3437.1,3.2078]
[1735654429774,1.4936,3437.7,3437.2,0.29132]
[1735654430175,1.4936,3437.7,3437.3,3.1447]
[1735654430374,1.4936,3437.7,3437.5,3.2078]
[1735654430572,3.2078,3438.0,3437.6,0.29129]
[1735654431473,1.4936,3438.1,3437.6,1.26939013]
[1735654431676,6.78888413,3438.4,3438.1,0.29124]
[1735654431872,6.78888413,3438.4,3438.2,3.1648]
[1735654432277,1.5464,3438.9,3438.2,3.45604]
[1735654432478,3.37997866,3438.9,3438.3,0.29123]
[1735654432677,1.83355918,3438.9,3438.3,1.26939013]
[1735654432878,2.31552282,3438.6,3438.3,1.26939013]
[1735654433074,5.52332282,3438.6,3438.3,1.26939013]
[1735654433777,3.2078,3438.6,3438.3,1.26939013]
[1735654436877,5.52332282,3438.6,3438.3,1.26939013]
[1735654437179,5.52332282,3438.6,3437.9,3.2078]
[1735654438377,5.88492412,3438.6,3437.9,3.2078]
[1735654439979,2.31552282,3438.3,3437.8,1.26939013]
[1735654440187,4.8086,3438.2,3437.5,4.7048]
[1735654440484,6.3719,3438.2,3437.5,4.7048]
[1735654440683,6.7335013,3438.2,3437.5,4.7048]
[1735654440979,3.2078,3437.8,3437.1,1.204]
[1735654441380,3.5257013,3438.2,3437.2,2.31552282]
[1735654441580,3.2078,3437.9,3437.2,2.31552282]
[1735654445882,3.2078,3437.9,3437.2,2.60684282]
[1735654446301,3.2078,3437.9,3437.3,0.29132]
[1735654446686,3.2078,3437.9,3437.2,3.58491295]
[1735654446887,3.2078,3437.9,3437.2,3.87623295]
[1735654447784,3.2078,3437.9,3437.2,3.58491295]
[1735654448391,3.2078,3437.9,3437.2,1.26939013]
[1735654448590,3.2078,3437.9,3437.2,1.56071013]
[1735654449191,3.2078,3437.9,3437.3,1.26939013]
[1735654449987,0.36175412,3438.0,3437.3,1.26939013]
[1735654450292,7.15063825,3438.1,3437.3,1.26939013]
[1735654450490,7.15063825,3438.1,3437.5,5.81462282]
[1735654450691,6.78888413,3438.1,3437.7,1.26939013]
[1735654450887,6.78888413,3438.1,3437.8,3.58491295]
[1735654451087,6.78888413,3438.1,3437.9,40.8]
[1735654451684,6.78888413,3438.1,3437.8,1.26939013]
[1735654452292,3.1641,3438.2,3437.8,1.26939013]
[1735654454783,3.2078,3437.9,3437.8,1.26939013]
[1735654455185,3.2078,3437.9,3437.2,3.0773]
[1735654456192,3.2078,3437.9,3437.4,2.31552282]
[1735654456992,3.2078,3437.9,3437.2,3.0773]
[1735654457997,3.2078,3437.9,3437.2,1.5305]
[1735654458596,3.2078,3437.9,3437.0,4.47719013]
[1735654458798,1.5068,3437.8,3437.0,4.47719013]
[1735654461695,3.5695948,3437.9,3437.1,2.31552282]
[1735654461896,3.2078,3437.9,3437.2,0.29132]
[1735654462792,3.2078,3437.9,3437.1,2.60685282]
[1735654463299,3.2078,3437.9,3437.2,0.29132]
[1735654463496,3.2078,3437.9,3437.1,2.31552282]
[1735654463799,0.82775271,3438.0,3437.8,2.31552282]
[1735654464095,6.78888413,3438.1,3437.8,2.31552282]
[1735654464293,6.78888413,3438.1,3437.8,3.76602282]
[1735654464504,6.78888413,3438.1,3437.9,1.5714]
[1735654464690,3.1641,3438.2,3437.9,1.5714]
[1735654468701,3.1641,3438.2,3437.9,1.86266]
[1735654468999,3.1641,3438.2,3437.9,1.5714]
[1735654469397,3.1641,3438.2,3437.9,1.86266]
[1735654470892,3.1641,3438.2,3437.9,1.5714]
[1735654471094,3.1641,3438.2,3437.9,1.86266]
[1735654472793,0.36210326,3438.4,3437.9,1.5714]
[1735654472999,1.4734,3438.4,3438.0,0.29125]
[1735654473502,1.4734,3438.4,3437.9,1.5714]
[1735654473698,1.4734,3438.4,3438.0,0.29125]
[1735654474211,1.4734,3438.4,3437.9,1.86266]
[1735654474405,1.4734,3438.4,3437.9,1.5714]
[1735654474601,1.4734,3438.4,3438.1,0.29124]
[1735654475100,1.4734,3438.4,3438.0,0.29125]
[1735654475505,1.4734,3438.4,3437.9,1.86266]
[1735654476403,1.83547191,3438.4,3437.9,1.86266]
[1735654476704,2.31552282,3438.0,3437.3,3.49911]
[1735654477005,1.5842,3437.9,3437.3,3.2078]
[1735654477200,4.792,3437.9,3437.3,3.2078]
[1735654477395,4.792,3437.9,3437.2,1.586]
[1735654477600,4.792,3437.9,3437.2,1.87732]
[1735654477800,5.15407191,3437.9,3437.2,1.87732]
[1735654478001,5.15407191,3437.9,3437.2,1.586]
[1735654478302,1.94627191,3437.9,3437.2,1.586]
[1735654478497,4.792,3437.9,3437.2,1.586]
[1735654479108,5.62005753,3437.9,3437.2,1.586]
[1735654480306,0.82805753,3437.9,3437.8,1.56066013]
[1735654480508,1.466,3438.9,3437.8,6.40937013]
[1735654480707,1.466,3438.9,3438.4,3.49902]
[1735654481002,1.466,3438.9,3438.4,44.0078]
[1735654481200,1.466,3438.9,3438.4,40.8]
[1735654481201,2.31552282,3438.8,3438.4,40.8]
[1735654481400,3.56962685,3438.6,3438.1,1.26939013]
[1735654481606,7.15071098,3438.5,3438.1,1.26939013]
[1735654481804,0.36182685,3438.5,3438.1,1.26939013]
[1735654482004,1.5737,3438.4,3438.1,1.26939013]
[1735654485320,1.5737,3438.4,3438.0,0.29125]
[1735654486015,1.5737,3438.4,3437.8,3.49907]
[1735654487120,1.5737,3438.4,3437.8,3.2078]
[1735654487322,1.5737,3438.4,3437.9,0.29126]
[1735654487620,6.78888413,3438.3,3437.9,0.29126]
[1735654487823,1.5165,3438.2,3437.9,0.29126]
[1735654489024,1.5165,3438.2,3437.8,3.49906]
[1735654489824,1.5165,3438.2,3437.8,3.2078]
[1735654490022,4.1618865,3438.2,3437.8,3.2078]
[1735654490223,3.2078,3438.1,3437.4,6.52899598]
[1735654490529,4.00358826,3438.1,3437.4,6.52899598]
[1735654491026,4.00358826,3438.1,3437.4,1.5321]
[1735654491822,4.00362827,3438.1,3437.4,1.5321]
[1735654492024,3.2078,3438.1,3437.8,0.29127]
[1735654492237,1.5165,3438.2,3437.7,3.2078]
[1735654492730,1.84649013,3438.2,3437.7,3.2078]
[1735654493027,3.2078,3438.1,3437.2,3.2078]
[1735654493222,4.00377024,3438.1,3437.2,3.2078]
[1735654494824,0.79597024,3438.1,3437.1,3.0059]
[1735654495127,3.2078,3438.0,3437.2,3.2078]
[1735654496322,0.32999013,3438.1,3437.6,3.49909]
[1735654496523,2.9713,3438.2,3437.7,1.5342]
[1735654497431,1.5165,3438.2,3437.7,1.5342]
[1735654498029,8.30538413,3438.2,3437.7,1.5342]
[1735654498725,8.30538413,3438.2,3437.7,1.82547]
[1735654498926,8.30538413,3438.2,3437.8,1.88747]
[1735654499329,1.5165,3438.2,3437.8,1.88747]
[1735654499836,1.5165,3438.2,3437.8,1.5962]
[1735654501130,1.5165,3438.2,3437.8,3.91172282]
[1735654501335,1.5165,3438.2,3438.0,0.29125]
[1735654501639,6.78888413,3438.3,3438.1,3.2078]
[1735654501832,6.78888413,3438.3,3438.1,3.49904]
[1735654502233,6.78888413,3438.3,3438.1,3.2078]
[1735654502432,6.78888413,3438.3,3438.2,0.29124]
[1735654502725,1.5108,3438.6,3438.1,5.52332282]
[1735654502927,1.5108,3438.6,3438.2,0.29123]
[1735654503434,1.5108,3438.6,3438.3,1.5331]
[1735654503633,1.5108,3438.6,3438.3,1.82433]
[1735654503831,1.5108,3438.6,3438.3,1.5331]
[1735654505034,1.5108,3438.6,3437.9,0.29126]
[1735654505334,2.31552282,3438.5,3437.8,4.44429013]
[1735654506440,2.31552282,3438.5,3437.8,3.1749]
[1735654506736,2.31552282,3438.2,3437.7,3.2078]
[1735654507240,1.5422,3438.1,3437.7,3.2078]
[1735654507440,1.5422,3438.1,3437.3,3.2078]
[1735654507736,2.31552282,3437.9,3437.3,3.2078]
[1735654507938,1.5422,3438.1,3437.2,4.735]
[1735654508338,1.5422,3438.1,3437.2,5.02632]
[1735654508637,1.5422,3438.1,3437.2,7.05052282]
[1735654509040,1.77610059,3438.1,3437.4,0.2913]
[1735654509231,6.78888413,3437.9,3437.4,0.2913]
[1735654509541,1.4449,3437.8,3437.4,0.2913]
[1735654509733,1.4449,3437.8,3437.3,0.29131]
[1735654510538,6.78888413,3437.9,3437.6,0.29128]
[1735654510739,6.78888413,3437.9,3437.7,1.5953]
[1735654511442,1.5278,3438.0,3437.7,1.5953]
[1735654512242,1.5278,3438.0,3437.3,0.29131]
[1735654512439,1.5278,3438.0,3437.3,1.5953]
[1735654513542,3.2078,3437.4,3436.9,1.4582]
[1735654513731,1.5271,3437.3,3437.0,1.4501]
[1735654515143,1.5271,3437.3,3437.0,1.74143]
[1735654515645,1.5147,3437.8,3437.1,0.29132]
[1735654515944,1.5271,3437.7,3437.3,3.2078]
[1735654516645,2.31552282,3437.6,3437.3,3.2078]
[1735654517043,1.5709,3437.5,3437.3,3.2078]
[1735654518144,1.5271,3437.7,3437.3,3.2078]
[1735654518341,6.78888413,3437.8,3437.5,2.31552282]
[1735654518553,6.78888413,3437.8,3437.7,3.49908]
[1735654518942,6.78888413,3437.8,3437.7,4.76847013]
[1735654519544,1.5479,3438.5,3437.8,1.26939013]
[1735654519745,1.5479,3438.5,3438.3,0.29123]
[1735654519947,1.5479,3438.5,3438.4,1.4816]
[1735654521348,1.5479,3438.5,3438.0,1.26939013]
[1735654521549,3.85772282,3438.4,3438.0,1.26939013]
[1735654521943,1.4967,3438.3,3438.0,1.26939013]
[1735654523945,2.31552282,3438.1,3438.0,1.26939013]
[1735654524547,2.31552282,3438.1,3437.7,1.4816]
[1735654524948,3.2078,3438.2,3437.7,1.4816]
[1735654525148,3.86342282,3438.5,3437.8,3.2078]
[1735654525346,1.531,3438.2,3437.8,3.2078]
[1735654525546,1.531,3438.2,3437.9,0.29126]
[1735654526347,3.86342282,3438.5,3437.9,0.29126]
[1735654527348,1.5479,3438.5,3437.8,5.52332282]
[1735654527549,1.5479,3438.5,3437.8,6.79271295]
[1735654527851,1.5479,3438.5,3438.2,3.49903]
[1735654528054,1.5479,3438.5,3438.3,1.5377]
[1735654533249,1.5597,3438.4,3438.0,1.203]
[1735654533455,1.5597,3438.4,3437.8,3.2078]
[1735654534255,4.7675,3438.4,3437.8,3.2078]
[1735654534457,5.09709685,3438.4,3437.8,3.2078]
[1735654535350,4.7675,3438.4,3437.8,3.2078]
[1735654535550,1.5597,3438.4,3437.9,1.75846]
[1735654535756,1.5597,3438.4,3437.9,1.4672]
[1735654535958,1.5597,3438.4,3438.1,0.29124]
[1735654536150,1.5479,3438.5,3438.3,0.29123]
[1735654536346,3.1578,3438.8,3438.5,0.29121]
[1735654536549,3.1578,3438.8,3438.4,1.83942]
[1735654537952,1.4706,3438.9,3438.7,0.29119]
[1735654538152,7.97681649,3439.2,3438.8,0.29119]
[1735654538354,7.97681649,3439.2,3438.5,1.5136]
[1735654538562,7.97681649,3439.2,3438.8,0.29118]
[1735654539264,7.97681649,3439.2,3438.6,1.5504]
[1735654539459,3.2078,3439.3,3438.6,1.5504]
[1735654539657,3.2078,3439.3,3438.8,0.29118]
[1735654540252,3.2078,3439.3,3438.6,1.5504]
[1735654540555,3.2078,3439.3,3438.4,5.13311295]
[1735654540756,3.2078,3439.3,3438.8,0.29118]
[1735654541061,3.2078,3439.3,3438.7,0.29119]
[1735654541558,1.5726,3439.5,3438.9,3.2078]
[1735654541755,1.5726,3439.5,3439.3,0.29114]
[1735654541951,7.97681649,3439.6,3439.3,0.29114]
[1735654542351,7.97681649,3439.6,3439.4,0.29113]
[1735654542661,1.4455,3440.1,3439.7,0.29111]
[1735654542857,1.4455,3440.1,3440.0,3.2078]
[1735654543160,9.50871649,3440.2,3440.0,3.2078]
[1735654543961,1.5319,3440.2,3439.8,1.5244]
[1735654544963,1.5319,3440.2,3439.5,3.2078]
[1735654546360,2.31552282,3440.0,3439.5,3.2078]
[1735654546659,1.5737,3439.9,3439.1,3.2078]
[1735654546962,1.5483,3439.8,3439.1,3.2078]
[1735654547259,2.31552282,3439.7,3439.1,3.2078]
[1735654547468,1.5483,3439.8,3438.7,3.2078]
[1735654547469,2.31552282,3439.4,3438.7,3.2078]
[1735654547662,1.5737,3439.3,3438.7,3.2078]
[1735654551760,1.5737,3439.3,3438.7,3.49899]
[1735654551957,1.5737,3439.3,3438.7,3.2078]
[1735654552859,1.5737,3439.3,3438.3,4.47719013]
[1735654553069,3.2078,3439.1,3438.3,4.4108]
[1735654553368,1.5541,3439.0,3438.3,3.2078]
[1735654553554,1.5541,3439.0,3438.3,3.49903]
[1735654553754,1.5541,3439.0,3438.4,2.31552282]
[1735654553960,1.5541,3439.0,3438.5,0.29121]
[1735654554160,1.5541,3439.0,3438.7,3.2078]
[1735654554667,1.5541,3439.0,3438.3,3.2078]
[1735654555363,1.5541,3439.0,3438.3,3.49902]
[1735654555561,1.5541,3439.0,3438.4,0.29122]
[1735654555863,1.5541,3439.0,3438.4,2.31552282]
[1735654556066,1.5541,3439.0,3438.5,0.29121]
[1735654556570,1.5541,3439.0,3438.4,2.60674282]
[1735654556761,1.5541,3439.0,3438.4,2.31552282]
[1735654557060,1.5541,3439.0,3438.5,0.29121]
[1735654557568,3.2078,3439.5,3438.7,5.81451282]
[1735654557767,3.2078,3439.5,3438.8,1.5971]
[1735654557768,1.4591,3439.2,3438.8,1.5971]
[1735654557957,1.4591,3439.2,3438.9,40.8]
[1735654558556,1.4591,3439.2,3438.8,1.5971]
[1735654559364,1.4591,3439.2,3438.7,3.2078]
[1735654561164,1.4591,3439.2,3438.3,6.27152013]
[1735654561373,1.4591,3439.2,3438.4,2.60674282]
[1735654561562,1.4591,3439.2,3438.4,43.40674282]
[1735654561861,1.4591,3439.2,3438.4,43.11552282]
[1735654562264,1.4591,3439.2,3438.4,40.8]
[1735654562471,1.4591,3439.2,3438.3,5.98029013]
[1735654562770,3.2078,3439.1,3438.3,5.98029013]
[1735654562972,1.4854,3439.0,3438.3,46.78029013]
[1735654563269,3.0862,3439.0,3438.4,0.29122]
[1735654563469,3.2078,3439.1,3438.4,0.29122]
[1735654563766,3.2078,3439.1,3438.6,2.31552282]
[1735654564271,3.2078,3439.1,3438.5,1.26939013]
[1735654564469,1.5805,3439.0,3438.5,1.26939013]
[1735654565474,3.89602282,3439.0,3438.5,1.26939013]
[1735654566567,1.5805,3439.0,3438.3,3.2078]
[1735654567967,3.89602282,3439.0,3438.3,3.2078]
[1735654571972,3.2078,3439.1,3438.3,5.52332282]
[1735654572172,3.2078,3439.1,3438.9,0.29117]
[1735654572469,1.4488,3439.5,3439.0,3.23576]
[1735654572670,1.4488,3439.5,3439.1,42.3468]
[1735654573068,1.4488,3439.5,3439.1,1.5468]
[1735654573865,1.4488,3439.5,3439.0,2.9446]
[1735654574771,3.2078,3439.7,3439.0,2.9446]
[1735654574970,3.2078,3439.7,3439.2,2.31552282]
[1735654575169,1.77471032,3440.0,3439.3,3.2078]
[1735654576069,3.2078,3439.7,3439.1,1.26939013]
[1735654576273,2.31552282,3439.6,3439.1,1.26939013]
[1735654576577,3.2078,3439.7,3439.1,1.26939013]
[1735654577465,2.31552282,3439.6,3439.1,1.26939013]
[1735654577670,1.4876,3439.5,3439.1,1.26939013]
[1735654577870,1.4907,3439.4,3439.1,1.26939013]
[1735654578367,5.52332282,3439.3,3438.5,3.2078]
[1735654578882,3.53731032,3439.3,3438.5,3.49901]
[1735654579071,3.2078,3439.3,3438.5,3.2078]
[1735654579373,3.2078,3439.3,3438.6,0.2912]
[1735654579570,3.2078,3439.3,3438.6,2.60672282]
[1735654581372,3.2078,3439.3,3438.6,2.31552282]
[1735654581967,3.2078,3439.3,3438.5,3.2078]
[1735654582867,3.2078,3439.3,3438.5,3.49901]
[1735654583470,3.2078,3439.3,3438.5,3.2078]
[1735654583675,3.2078,3439.3,3438.5,3.49901]
[1735654585373,3.2078,3439.3,3438.6,2.31552282]
[1735654585579,3.2078,3439.3,3438.9,0.29118]
[1735654585879,3.2078,3439.3,3438.8,0.29118]
[1735654586176,3.2078,3439.3,3438.9,42.2823]
[1735654586376,3.2078,3439.3,3438.9,1.4823]
[1735654586578,1.4907,3439.4,3439.0,1.489]
[1735654587172,1.4907,3439.4,3439.0,2.9846]
[1735654590880,1.4907,3439.4,3439.0,3.27577]
[1735654591080,1.4907,3439.4,3439.0,2.9846]
[1735654591285,3.53751668,3439.7,3439.0,2.9846]
[1735654591581,3.2078,3439.7,3439.2,0.29115]
[1735654591787,7.97681649,3439.8,3439.3,3.2078]
[1735654592183,7.97681649,3439.8,3439.3,3.49894]
[1735654592878,3.0193,3439.9,3439.3,3.49894]
[1735654593383,3.0193,3439.9,3439.3,3.2078]
[1735654593576,3.0193,3439.9,3439.4,0.29114]
[1735654593778,3.0193,3439.9,3439.5,0.29112]
[1735654594084,1.518,3439.9,3439.5,0.29112]
[1735654594277,3.2078,3440.1,3439.6,1.468]
[1735654594478,11.12211649,3440.2,3439.7,3.2078]
[1735654594985,3.1453,3440.2,3439.7,3.2078]
[1735654595674,1.5809,3440.2,3439.7,3.2078]
[1735654595878,1.5809,3440.2,3439.8,0.2911]
[1735654596079,1.5809,3440.2,3439.7,3.49891]
[1735654597184,1.5809,3440.2,3439.7,3.2078]
[1735654598680,1.5809,3440.2,3439.7,3.49891]
[1735654599282,1.5809,3440.2,3439.7,3.2078]
[1735654600484,1.5809,3440.2,3439.8,0.2911]
[1735654602885,3.0558,3440.5,3440.4,0.29105]
[1735654603093,1.5066,3440.5,3440.3,0.29105]
[1735654603285,10.25590692,3440.6,3440.3,0.29105]
[1735654603589,10.25590692,3440.6,3440.3,1.86545]
[1735654604089,3.2078,3440.9,3440.3,1.86545]
[1735654604388,3.2078,3440.9,3440.5,2.60655282]
[1735654604589,3.2078,3440.9,3440.6,0.29103]
[1735654604791,4.4968,3441.0,3440.6,0.29103]
[1735654605290,4.4968,3441.0,3440.5,5.81436282]
[1735654606086,4.4968,3441.0,3440.5,5.52332282]
[1735654606488,4.4968,3441.0,3440.6,0.29103]
[1735654607189,4.4968,3441.0,3440.5,3.2078]
[1735654608189,2.31552282,3440.8,3440.2,1.26939013]
[1735654608388,3.2078,3440.6,3440.2,1.26939013]
[1735654608590,3.2078,3440.6,3440.0,3.2078]
[1735654609396,3.2078,3440.6,3440.2,0.29106]
[1735654609691,3.2078,3440.6,3440.0,3.2078]
[1735654609901,3.2078,3440.6,3439.7,1.8179]
[1735654610091,3.2078,3440.6,3439.8,2.60662282]
[1735654610294,3.2078,3440.6,3439.7,1.5268]
[1735654612194,3.2078,3440.6,3439.6,3.49891]
[1735654612496,3.2078,3440.6,3439.7,1.5823]
[1735654613895,3.4372319,3440.6,3439.7,1.5823]
[1735654616695,3.2078,3440.1,3439.5,2.31552282]
[1735654616995,4.4802,3440.0,3439.4,1.202]
[1735654617590,3.2078,3439.6,3438.4,1.26939013]
[1735654617792,3.2078,3439.6,3437.4,33.22939408]
[1735654617793,2.31552282,3438.9,3438.6,1.26939013]
[1735654618090,3.2078,3438.7,3438.1,4.50619968]
[1735654618695,2.31552282,3438.3,3438.1,4.50619968]
[1735654618900,3.2078,3438.2,3437.6,1.5556]
[1735654619402,2.31552282,3438.6,3437.9,3.2078]
[1735654620095,3.2078,3438.4,3437.6,1.5556]
[1735654621202,3.2078,3438.4,3437.6,2.7576]
[1735654623503,0.56133493,3438.7,3437.6,2.7576]
[1735654623504,3.2078,3438.0,3437.6,2.7576]
[1735654623692,3.2078,3438.0,3437.1,2.31552282]
[1735654623693,1.5108,3437.9,3437.3,1.202]
[1735654623892,2.9614,3437.9,3437.3,1.202]
[1735654624090,8.39292026,3438.8,3438.4,0.29121]
[1735654624091,6.84592026,3438.8,3438.4,0.29121]
[1735654624299,6.84592026,3438.8,3438.6,5.52332282]
[1735654624497,6.84592026,3438.8,3438.7,1.202]
[1735654624703,6.84592026,3438.8,3438.7,4.0754]
[1735654625000,4.4539,3439.5,3438.7,4.0754]
[1735654625303,4.4539,3439.5,3438.7,44.8754]
[1735654628097,6.76942282,3439.5,3438.7,44.8754]
[1735654628999,2.31552282,3439.2,3438.7,1.4395]
[1735654629497,5.52332282,3439.2,3438.6,1.26939013]
[1735654629700,4.4539,3439.5,3438.2,3.2078]
[1735654629701,3.2078,3438.8,3438.2,3.2078]
[1735654629903,1.5678,3438.7,3438.2,3.2078]
[1735654630799,2.31552282,3438.6,3438.0,2.82299013]
[1735654630995,2.31552282,3438.3,3437.8,3.2078]
[1735654632698,2.31552282,3438.3,3437.4,7.23279013]
[1735654632895,2.31552282,3438.0,3437.4,4.02499013]
[1735654633199,2.31552282,3437.7,3437.4,2.7556]
[1735654633903,1.5135,3437.9,3437.4,1.5536]
[1735654634104,1.5135,3437.9,3437.0,5.67919013]
[1735654634302,2.31552282,3437.7,3437.0,3.2078]
[1735654634498,3.2078,3437.5,3437.0,44.0078]
[1735654634905,3.2078,3437.5,3437.0,3.2078]
[1735654635601,3.2078,3437.5,3437.0,3.49914]
[1735654635799,3.2078,3437.5,3437.1,0.29133]
[1735654635999,3.2078,3437.5,3437.2,0.29132]
[1735654636200,3.2078,3437.5,3437.0,3.2078]
[1735654638306,2.31552282,3437.4,3437.0,3.2078]
[1735654638604,2.31552282,3437.4,3436.3,0.29211005]
[1735654638605,2.31552282,3437.1,3436.3,1.49711005]
[1735654638807,1.5524,3437.0,3436.3,1.49711005]
[1735654639606,1.5524,3437.0,3436.3,1.205]
[1735654640304,1.5524,3437.0,3436.6,3.2078]
[1735654640503,1.5524,3437.0,3436.6,3.49917]
[1735654640808,1.5524,3437.0,3436.6,3.2078]
[1735654641307,3.2078,3437.5,3436.6,3.2078]
[1735654642102,3.2078,3437.5,3436.7,1.77766]
[1735654642609,3.2078,3437.5,3436.8,1.4621]
[1735654644207,3.2078,3437.5,3436.9,40.8]
[1735654645213,3.2078,3437.5,3436.8,1.4621]
[1735654646711,2.31552282,3437.4,3436.8,1.4621]
[1735654646913,2.31552282,3437.1,3436.6,3.2078]
[1735654648003,5.52332282,3437.1,3436.1,4.47719013]
[1735654648209,2.31552282,3436.8,3436.1,4.47719013]
[1735654648513,1.5646,3436.7,3436.1,3.2078]
[1735654648714,1.5275,3436.6,3436.1,3.2078]
[1735654648908,2.31552282,3436.5,3436.1,3.2078]
[1735654649106,3.77062282,3436.5,3436.1,3.2078]
[1735654649512,2.31552282,3436.2,3435.6,3.2078]
[1735654649713,2.31552282,3435.9,3435.6,3.2078]
[1735654649909,1.5646,3435.8,3435.6,3.2078]
[1735654650309,1.5646,3435.8,3435.4,42.3669]
[1735654650810,2.31552282,3436.2,3435.6,0.29146]
[1735654651015,3.2078,3436.3,3435.6,0.29146]
[1735654651220,3.2078,3436.3,3435.6,5.52332282]
[1735654651416,1.5292,3436.4,3436.1,0.29141]
[1735654651623,3.2078,3437.0,3436.1,0.29141]
[1735654651916,1.5292,3436.9,3436.2,1.7645]
[1735654652218,1.4626,3437.2,3436.5,2.31552282]
[1735654652527,2.31552282,3437.4,3436.6,1.206]
[1735654653017,5.52332282,3437.1,3436.6,1.206]
[1735654653816,2.31552282,3436.8,3436.4,4.47719013]
[1735654654118,1.4882,3436.7,3436.4,4.47719013]
[1735654654921,1.4876,3436.6,3436.4,1.26939013]
[1735654656714,1.4876,3436.6,3436.2,1.4731]
[1735654659414,1.4882,3436.7,3436.2,1.4731]
[1735654660115,1.4882,3436.7,3436.2,1.76451]
[1735654660326,1.4882,3436.7,3436.2,1.4731]
[1735654660821,3.2078,3437.1,3436.5,3.2078]
[1735654661023,3.2078,3437.1,3436.6,1.76017]
[1735654661420,1.5586,3437.3,3436.7,0.29136]
[1735654661620,1.5586,3437.3,3437.0,0.29134]
[1735654661924,1.5586,3437.3,3436.9,3.2078]
[1735654662224,1.5586,3437.3,3437.0,1.5624]
[1735654663616,1.5586,3437.3,3436.9,3.2078]
[1735654664018,2.31552282,3437.0,3436.1,3.49922]
[1735654664320,1.5586,3437.3,3436.1,3.49922]
[1735654664321,2.31552282,3436.7,3436.1,3.2078]
[1735654664524,1.5542,3436.6,3436.1,3.2078]
[1735654664916,1.5542,3436.6,3436.1,3.49921]
[1735654666118,1.5542,3436.6,3436.1,3.2078]
[1735654666320,1.5542,3436.6,3436.1,3.49921]
[1735654667225,1.5542,3436.6,3436.1,3.2078]
[1735654667423,1.5542,3436.6,3436.1,3.49921]
[1735654667720,1.5542,3436.6,3436.1,3.2078]
[1735654667919,1.5542,3436.6,3436.3,0.29139]
[1735654668224,1.5542,3436.6,3436.1,3.2078]
[1735654668426,1.5542,3436.6,3436.1,3.49921]
[1735654668619,1.5542,3436.6,3436.1,3.2078]
[1735654669816,2.31552282,3436.4,3436.1,3.2078]
[1735654671020,2.31552282,3436.4,3435.9,0.29143]
[1735654671721,1.5542,3436.6,3436.0,0.29142]
[1735654672123,1.5542,3436.6,3435.8,1.26939013]
[1735654672324,1.5542,3436.6,3436.1,0.29142]
[1735654672525,1.5542,3436.6,3436.0,0.29142]
[1735654673716,1.5542,3436.6,3435.8,1.26939013]
[1735654673924,1.5542,3436.6,3436.2,0.2914]
[1735654674226,1.5542,3436.6,3436.3,1.4986]
[1735654676823,7.23578643,3436.6,3436.3,1.4986]
[1735654677625,5.68158643,3436.5,3436.3,1.4986]
[1735654678427,2.31552282,3436.4,3436.1,3.2078]
[1735654678826,7.99710925,3436.4,3436.1,3.2078]
[1735654679226,1.4944,3436.3,3436.1,3.2078]
[1735654679936,1.5542,3436.6,3436.1,3.49922]
[1735654679937,5.68158643,3436.2,3436.1,3.49922]
[1735654681330,5.68158643,3436.5,3436.2,0.2914]
[1735654682236,5.68158643,3436.5,3436.1,3.2078]
[1735654682439,5.68158643,3436.5,3436.4,2.60691282]
[1735654682733,5.68158643,3436.5,3436.4,3.80991282]
[1735654682936,5.68158643,3436.5,3436.4,1.49439]
[1735654683133,12.3241617,3437.3,3436.4,1.49439]
[1735654683134,5.68158643,3437.0,3436.4,2.47239013]
[1735654683433,2.31552282,3436.8,3436.4,1.26939013]
[1735654684231,5.68158643,3436.6,3436.4,1.26939013]
[1735654684435,5.68158643,3436.6,3436.5,0.29138]
[1735654685135,5.68158643,3436.6,3436.5,1.79538]
[1735654685337,5.68158643,3436.8,3436.5,1.504]
[1735654685529,6.84592026,3437.4,3436.7,4.47719013]
[1735654685725,6.84592026,3437.4,3437.3,5.81463282]
[1735654686037,6.84592026,3437.4,3437.3,49.08702295]
[1735654686337,6.84592026,3437.4,3437.3,54.08702295]
[1735654686530,1.92052026,3438.3,3438.0,0.29125]
[1735654686735,1.92052026,3438.3,3437.9,3.2078]
[1735654687039,1.92052026,3438.3,3438.2,0.29124]
[1735654688029,1.5464,3438.8,3438.1,1.01937]
[1735654688237,1.5464,3438.8,3438.5,0.29121]
[1735654688634,1.5464,3438.8,3438.5,40.8]
[1735654688935,1.5464,3438.8,3438.5,41.09121]
[1735654689326,1.5464,3438.8,3438.5,40.8]
[1735654689531,1.5464,3438.8,3438.7,0.2912]
[1735654689733,1.5464,3438.8,3438.7,3.499]
[1735654690738,1.5474,3439.3,3438.9,0.29118]
[1735654690939,1.5474,3439.3,3438.7,3.2078]
[1735654690940,1.5803,3439.6,3439.1,3.2078]
[1735654691146,1.5803,3439.6,3439.3,0.29114]
[1735654691436,1.5803,3439.6,3439.1,3.49896]
[1735654691939,1.5803,3439.6,3439.1,3.2078]
[1735654692240,1.5803,3439.6,3439.2,0.29115]
[1735654692638,1.5803,3439.6,3439.1,3.49896]
[1735654692841,1.5803,3439.6,3439.2,0.29115]
[1735654693344,1.5803,3439.6,3439.1,3.49896]
[1735654693639,1.5803,3439.6,3439.1,3.2078]
[1735654693838,1.5803,3439.6,3439.1,3.49896]
[1735654694037,1.5803,3439.6,3439.1,3.2078]
[1735654694641,1.5803,3439.6,3439.1,3.49896]
[1735654695543,1.5803,3439.6,3439.1,3.2078]